[Event "Titled Tuesday Blitz June 8 2021"]
[White "Delgadillo, Adonay"]
[Black "Murzin, Volodar"]
[WhiteFideId "3301915"]
[BlackFideId "44155573"]
[WhiteElo "2103"]
[BlackElo "2541"]
[Result "0-1"]
[Round "01"]
[TimeControl "180+1"]
[Date "2021.06.08"]
[WhiteClock "0:01:15"]
[BlackClock "0:00:51"]

1. e4 {[%clk 0:03:00]}  c6 {[%clk 0:02:58]} 2. d4 {[%clk 0:03:00]}  d5 {[%clk 0:02:55]} 3. exd5 {[%clk 0:03:01]}  cxd5 {[%clk 0:02:55]} 4. c4 {[%clk 0:03:00]}  Nf6 {[%clk 0:02:54]} 5. Nc3 {[%clk 0:03:00]}  g6 {[%clk 0:02:55]} 6. Bg5 {[%clk 0:03:00]}  Bg7 {[%clk 0:02:54]} 7. h3 {[%clk 0:02:49]}  O-O {[%clk 0:02:53]} 8. Bxf6 {[%clk 0:02:44]}  Bxf6 {[%clk 0:02:53]} 9. Nxd5 {[%clk 0:02:45]}  Bg7 {[%clk 0:02:53]} 10. Nf3 {[%clk 0:02:45]}  Nc6 {[%clk 0:02:53]} 11. Be2 {[%clk 0:02:31]}  e6 {[%clk 0:02:50]} 12. Nc3 {[%clk 0:02:28]}  Nxd4 {[%clk 0:02:50]} 13. Nxd4 {[%clk 0:02:28]}  Bxd4 {[%clk 0:02:47]} 14. O-O {[%clk 0:02:29]}  Qb6 {[%clk 0:02:28]} 15. Na4 {[%clk 0:02:26]}  Qd6 {[%clk 0:02:24]} 16. Bf3 {[%clk 0:02:19]}  Rd8 {[%clk 0:02:22]} 17. Qb3 {[%clk 0:02:16]}  Rb8 {[%clk 0:02:12]} 18. c5 {[%clk 0:02:04]}  Qc7 {[%clk 0:02:05]} 19. Rfd1 {[%clk 0:02:03]}  e5 {[%clk 0:01:31]} 20. Bd5 {[%clk 0:01:56]}  Bf5 {[%clk 0:01:29]} 21. Rac1 {[%clk 0:01:52]}  Qe7 {[%clk 0:01:23]} 22. Qc4 {[%clk 0:01:44]}  Rbc8 {[%clk 0:01:15]} 23. b4 {[%clk 0:01:39]}  b5 {[%clk 0:01:09]} 24. Bxf7+ {[%clk 0:01:23]}  Qxf7 {[%clk 0:01:07]} 25. Qxb5 {[%clk 0:01:23]}  Qxa2 {[%clk 0:00:57]} 26. c6 {[%clk 0:01:15]}  Qxf2+ {[%clk 0:00:51]} 0-1


[Site "https://www.chess.com"]

[Event "Titled Tuesday Blitz June 8 2021"]
[White "Wagner, Dinara"]
[Black "Xiong, Jeffery"]
[WhiteFideId "24157570"]
[BlackFideId "2047640"]
[WhiteElo "2260"]
[BlackElo "2724"]
[Result "0-1"]
[Round "01"]
[TimeControl "180+1"]
[Date "2021.06.08"]
[WhiteClock "0:00:02"]
[BlackClock "0:00:56"]

1. Nf3 {[%clk 0:02:54]}  c5 {[%clk 0:02:59]} 2. c4 {[%clk 0:02:54]}  Nc6 {[%clk 0:02:59]} 3. g3 {[%clk 0:02:54]}  g6 {[%clk 0:02:58]} 4. Bg2 {[%clk 0:02:54]}  Bg7 {[%clk 0:02:59]} 5. Nc3 {[%clk 0:02:55]}  d6 {[%clk 0:02:59]} 6. a3 {[%clk 0:02:55]}  e6 {[%clk 0:02:59]} 7. b4 {[%clk 0:02:53]}  Nge7 {[%clk 0:02:59]} 8. O-O {[%clk 0:02:50]}  O-O {[%clk 0:02:59]} 9. b5 {[%clk 0:02:48]}  Na5 {[%clk 0:02:59]} 10. Qa4 {[%clk 0:02:39]}  Bd7 {[%clk 0:02:57]} 11. Bb2 {[%clk 0:02:11]}  a6 {[%clk 0:02:57]} 12. d3 {[%clk 0:02:09]}  d5 {[%clk 0:02:44]} 13. Qc2 {[%clk 0:01:31]}  dxc4 {[%clk 0:02:43]} 14. bxa6 {[%clk 0:01:29]}  Rxa6 {[%clk 0:02:42]} 15. Rfd1 {[%clk 0:01:25]}  Nb3 {[%clk 0:02:37]} 16. Rab1 {[%clk 0:01:22]}  Nd4 {[%clk 0:02:37]} 17. Qd2 {[%clk 0:01:06]}  cxd3 {[%clk 0:02:27]} 18. Qxd3 {[%clk 0:01:05]}  Bc6 {[%clk 0:02:27]} 19. Ne4 {[%clk 0:00:58]}  Bb5 {[%clk 0:02:20]} 20. Qe3 {[%clk 0:00:29]}  Nd5 {[%clk 0:02:20]} 21. Qd2 {[%clk 0:00:25]}  Bxe2 {[%clk 0:01:32]} 22. Bxd4 {[%clk 0:00:24]}  Bxd1 {[%clk 0:01:32]} 23. Bxg7 {[%clk 0:00:23]}  Bxf3 {[%clk 0:01:32]} 24. Bxf3 {[%clk 0:00:20]}  Kxg7 {[%clk 0:01:31]} 25. Nxc5 {[%clk 0:00:19]}  Rb6 {[%clk 0:01:25]} 26. Rd1 {[%clk 0:00:16]}  Qe7 {[%clk 0:01:13]} 27. Qd4+ {[%clk 0:00:15]}  Nf6 {[%clk 0:01:13]} 28. Nd7 {[%clk 0:00:12]}  Rb3 {[%clk 0:01:07]} 29. Kg2 {[%clk 0:00:06]}  Rd8 {[%clk 0:01:00]} 30. Qc4 {[%clk 0:00:03]}  Rxf3 {[%clk 0:00:59]} 31. Kxf3 {[%clk 0:00:01]}  Rxd7 {[%clk 0:00:59]} 32. Rc1 {[%clk 0:00:01]}  Qxa3+ {[%clk 0:00:57]} 33. Kg2 {[%clk 0:00:02]}  b5 {[%clk 0:00:56]} 34. Rc2 {[%clk 0:00:02]}  bxc4 {[%clk 0:00:56]} 0-1


[Site "https://www.chess.com"]

[Event "Titled Tuesday Blitz June 8 2021"]
[White "Fiol, Fabrice"]
[Black "Petriashvili, Nikoloz"]
[WhiteFideId "611670"]
[BlackFideId "13611216"]
[WhiteElo "2405"]
[BlackElo "2430"]
[Result "1/2-1/2"]
[Round "01"]
[TimeControl "180+1"]
[Date "2021.06.08"]
[WhiteClock "0:00:16"]
[BlackClock "0:00:39"]

1. e4 {[%clk 0:03:00]}  c5 {[%clk 0:03:00]} 2. Nf3 {[%clk 0:03:00]}  Nc6 {[%clk 0:03:00]} 3. Bb5 {[%clk 0:02:59]}  g6 {[%clk 0:03:00]} 4. O-O {[%clk 0:02:59]}  Bg7 {[%clk 0:03:01]} 5. c3 {[%clk 0:03:00]}  Nf6 {[%clk 0:03:00]} 6. d4 {[%clk 0:03:00]}  d5 {[%clk 0:02:58]} 7. e5 {[%clk 0:02:59]}  Ne4 {[%clk 0:02:57]} 8. Ne1 {[%clk 0:02:59]}  cxd4 {[%clk 0:02:55]} 9. cxd4 {[%clk 0:02:59]}  h6 {[%clk 0:02:49]} 10. h4 {[%clk 0:02:58]}  Qb6 {[%clk 0:02:42]} 11. Bxc6+ {[%clk 0:02:54]}  bxc6 {[%clk 0:02:42]} 12. Nc3 {[%clk 0:02:50]}  Ba6 {[%clk 0:02:35]} 13. Nc2 {[%clk 0:02:06]}  Bxf1 {[%clk 0:02:26]} 14. Qxf1 {[%clk 0:02:07]}  O-O {[%clk 0:02:24]} 15. Nxe4 {[%clk 0:01:48]}  dxe4 {[%clk 0:02:24]} 16. Qe2 {[%clk 0:01:48]}  c5 {[%clk 0:02:23]} 17. Qxe4 {[%clk 0:01:33]}  cxd4 {[%clk 0:02:18]} 18. Nxd4 {[%clk 0:01:34]}  Rfd8 {[%clk 0:02:16]} 19. Nc6 {[%clk 0:01:18]}  Rd1+ {[%clk 0:02:14]} 20. Kh2 {[%clk 0:01:17]}  Re8 {[%clk 0:01:23]} 21. Be3 {[%clk 0:01:09]}  Rxa1 {[%clk 0:01:12]} 22. Bxb6 {[%clk 0:01:07]}  axb6 {[%clk 0:01:12]} 23. e6 {[%clk 0:01:01]}  f5 {[%clk 0:01:09]} 24. Qf3 {[%clk 0:00:56]}  h5 {[%clk 0:01:05]} 25. Qg3 {[%clk 0:00:41]}  Kh7 {[%clk 0:01:05]} 26. Ne5 {[%clk 0:00:41]}  Bxe5 {[%clk 0:01:01]} 27. Qxe5 {[%clk 0:00:42]}  Rxa2 {[%clk 0:01:00]} 28. Qb5 {[%clk 0:00:41]}  Rd8 {[%clk 0:00:50]} 29. Qxb6 {[%clk 0:00:39]}  Rd6 {[%clk 0:00:48]} 30. Qb3 {[%clk 0:00:32]}  Raa6 {[%clk 0:00:47]} 31. Qb8 {[%clk 0:00:24]}  Kg7 {[%clk 0:00:44]} 32. b4 {[%clk 0:00:21]}  Rab6 {[%clk 0:00:44]} 33. Qc7 {[%clk 0:00:20]}  Rxe6 {[%clk 0:00:44]} 34. Qc3+ {[%clk 0:00:19]}  Kf7 {[%clk 0:00:43]} 35. Qh8 {[%clk 0:00:19]}  Rxb4 {[%clk 0:00:41]} 36. Qh7+ {[%clk 0:00:19]}  Ke8 {[%clk 0:00:41]} 37. Qg8+ {[%clk 0:00:18]}  Kd7 {[%clk 0:00:42]} 38. Qa8 {[%clk 0:00:18]}  Rbb6 {[%clk 0:00:42]} 39. Qd5+ {[%clk 0:00:17]}  Ke8 {[%clk 0:00:42]} 40. Qd4 {[%clk 0:00:17]}  Rf6 {[%clk 0:00:41]} 41. Qa4+ {[%clk 0:00:16]}  Kf7 {[%clk 0:00:41]} 42. Qf4 {[%clk 0:00:17]}  Rbe6 {[%clk 0:00:41]} 43. g3 {[%clk 0:00:16]}  Kg7 {[%clk 0:00:40]} 44. Qc7 {[%clk 0:00:16]}  Re2 {[%clk 0:00:40]} 45. Kg2 {[%clk 0:00:16]}  Rd6 {[%clk 0:00:39]} 46. Qc3+ {[%clk 0:00:15]}  Kh7 {[%clk 0:00:39]} 47. Qc4 {[%clk 0:00:15]}  Rdd2 {[%clk 0:00:39]} 48. Qf7+ {[%clk 0:00:15]}  Kh6 {[%clk 0:00:39]} 49. Qf8+ {[%clk 0:00:15]}  Kh7 {[%clk 0:00:39]} 50. Qf7+ {[%clk 0:00:15]}  Kh6 {[%clk 0:00:38]} 51. Qf8+ {[%clk 0:00:16]}  Kh7 {[%clk 0:00:39]} 52. Qf7+ {[%clk 0:00:16]} 1/2-1/2


[Site "https://www.chess.com"]

[Event "Titled Tuesday Blitz June 8 2021"]
[White "Garcia, Gabriel Gonzaga"]
[Black "Ibrahimli, Murad"]
[WhiteFideId "2138956"]
[BlackFideId "13410229"]
[WhiteElo "2444"]
[BlackElo "2820"]
[Result "1/2-1/2"]
[Round "01"]
[TimeControl "180+1"]
[Date "2021.06.08"]
[WhiteClock "0:00:44"]
[BlackClock "0:00:15"]

1. e4 {[%clk 0:02:59]}  e5 {[%clk 0:02:57]} 2. Nf3 {[%clk 0:02:59]}  Nc6 {[%clk 0:02:58]} 3. Bc4 {[%clk 0:03:00]}  Bc5 {[%clk 0:02:58]} 4. c3 {[%clk 0:02:59]}  Nf6 {[%clk 0:02:58]} 5. d4 {[%clk 0:02:59]}  exd4 {[%clk 0:02:58]} 6. cxd4 {[%clk 0:03:00]}  Bb4+ {[%clk 0:02:58]} 7. Bd2 {[%clk 0:03:01]}  Bxd2+ {[%clk 0:02:59]} 8. Nbxd2 {[%clk 0:03:02]}  d5 {[%clk 0:02:59]} 9. exd5 {[%clk 0:03:02]}  Nxd5 {[%clk 0:02:59]} 10. Qb3 {[%clk 0:03:03]}  Nce7 {[%clk 0:02:59]} 11. O-O {[%clk 0:03:03]}  O-O {[%clk 0:02:59]} 12. Rfe1 {[%clk 0:03:04]}  c6 {[%clk 0:02:57]} 13. Re2 {[%clk 0:03:04]}  Nb6 {[%clk 0:02:49]} 14. Bxf7+ {[%clk 0:03:04]}  Rxf7 {[%clk 0:02:49]} 15. Rae1 {[%clk 0:03:04]}  Nbd5 {[%clk 0:02:46]} 16. Ng5 {[%clk 0:03:04]}  Qb6 {[%clk 0:01:35]} 17. Rxe7 {[%clk 0:02:56]}  Rxe7 {[%clk 0:01:28]} 18. Rxe7 {[%clk 0:02:53]}  Bf5 {[%clk 0:01:28]} 19. Rxb7 {[%clk 0:02:47]}  Qxb3 {[%clk 0:01:22]} 20. Nxb3 {[%clk 0:02:48]}  Bc8 {[%clk 0:00:51]} 21. Rf7 {[%clk 0:01:59]}  h6 {[%clk 0:00:50]} 22. Rf3 {[%clk 0:01:53]}  hxg5 {[%clk 0:00:50]} 23. Rg3 {[%clk 0:01:51]}  g4 {[%clk 0:00:49]} 24. Na5 {[%clk 0:01:50]}  Bd7 {[%clk 0:00:48]} 25. Ra3 {[%clk 0:01:48]}  Rb8 {[%clk 0:00:46]} 26. b3 {[%clk 0:01:45]}  Rb4 {[%clk 0:00:42]} 27. Nc4 {[%clk 0:01:43]}  Nb6 {[%clk 0:00:42]} 28. Rxa7 {[%clk 0:01:40]}  Be6 {[%clk 0:00:35]} 29. Nxb6 {[%clk 0:01:38]}  Rxb6 {[%clk 0:00:34]} 30. Re7 {[%clk 0:01:29]}  Bd5 {[%clk 0:00:27]} 31. Re2 {[%clk 0:01:26]}  Ra6 {[%clk 0:00:25]} 32. h4 {[%clk 0:01:22]}  gxh3 {[%clk 0:00:24]} 33. gxh3 {[%clk 0:01:23]}  Kf7 {[%clk 0:00:25]} 34. Kh2 {[%clk 0:01:21]}  Kf6 {[%clk 0:00:24]} 35. Kg3 {[%clk 0:01:22]}  Ra8 {[%clk 0:00:24]} 36. Kf4 {[%clk 0:01:21]}  g5+ {[%clk 0:00:24]} 37. Kg3 {[%clk 0:01:20]}  Rh8 {[%clk 0:00:25]} 38. Re3 {[%clk 0:01:12]}  Be6 {[%clk 0:00:24]} 39. Kg2 {[%clk 0:01:13]}  Bd5+ {[%clk 0:00:24]} 40. Kg3 {[%clk 0:01:12]}  Ra8 {[%clk 0:00:25]} 41. Re2 {[%clk 0:01:09]}  Rb8 {[%clk 0:00:25]} 42. f4 {[%clk 0:01:08]}  gxf4+ {[%clk 0:00:25]} 43. Kxf4 {[%clk 0:01:09]}  Rh8 {[%clk 0:00:25]} 44. Re3 {[%clk 0:01:09]}  Rh4+ {[%clk 0:00:25]} 45. Kg3 {[%clk 0:01:09]}  Rxd4 {[%clk 0:00:26]} 46. Rc3 {[%clk 0:01:09]}  Rd2 {[%clk 0:00:26]} 47. a4 {[%clk 0:01:06]}  Rb2 {[%clk 0:00:26]} 48. a5 {[%clk 0:01:03]}  Ra2 {[%clk 0:00:20]} 49. Rc5 {[%clk 0:00:57]}  Ke5 {[%clk 0:00:18]} 50. h4 {[%clk 0:00:55]}  Kd4 {[%clk 0:00:19]} 51. Rc1 {[%clk 0:00:54]}  Rxa5 {[%clk 0:00:18]} 52. h5 {[%clk 0:00:52]}  Ra7 {[%clk 0:00:17]} 53. Kg4 {[%clk 0:00:50]}  Rg7+ {[%clk 0:00:18]} 54. Kh4 {[%clk 0:00:50]}  Rg2 {[%clk 0:00:16]} 55. h6 {[%clk 0:00:49]}  Rh2+ {[%clk 0:00:16]} 56. Kg5 {[%clk 0:00:50]}  Be4 {[%clk 0:00:16]} 57. Rc4+ {[%clk 0:00:48]}  Kd5 {[%clk 0:00:17]} 58. Rc3 {[%clk 0:00:44]}  Rg2+ {[%clk 0:00:16]} 59. Kh5 {[%clk 0:00:43]}  Rh2+ {[%clk 0:00:16]} 60. Kg5 {[%clk 0:00:44]}  Kd4 {[%clk 0:00:16]} 61. Rc4+ {[%clk 0:00:43]}  Kd5 {[%clk 0:00:15]} 62. Rc3 {[%clk 0:00:44]} 1/2-1/2


[Site "https://www.chess.com"]

[Event "Titled Tuesday Blitz June 8 2021"]
[White "Grieve, Harry"]
[Black "Bortnyk, Olexandr"]
[WhiteFideId "426520"]
[BlackFideId "14120828"]
[WhiteElo "2191"]
[BlackElo "2723"]
[Result "1/2-1/2"]
[Round "01"]
[TimeControl "180+1"]
[Date "2021.06.08"]
[WhiteClock "0:00:04"]
[BlackClock "0:00:05"]

1. e4 {[%clk 0:02:58]}  Nf6 {[%clk 0:02:55]} 2. e5 {[%clk 0:02:57]}  Nd5 {[%clk 0:02:54]} 3. d4 {[%clk 0:02:57]}  d6 {[%clk 0:02:55]} 4. Nf3 {[%clk 0:02:55]}  dxe5 {[%clk 0:02:54]} 5. Nxe5 {[%clk 0:02:56]}  g6 {[%clk 0:02:55]} 6. Be2 {[%clk 0:02:53]}  Bg7 {[%clk 0:02:54]} 7. O-O {[%clk 0:02:53]}  O-O {[%clk 0:02:53]} 8. c4 {[%clk 0:02:50]}  Nb6 {[%clk 0:02:42]} 9. Nc3 {[%clk 0:02:46]}  c6 {[%clk 0:02:36]} 10. Be3 {[%clk 0:02:41]}  Be6 {[%clk 0:02:35]} 11. b3 {[%clk 0:02:38]}  N8d7 {[%clk 0:02:32]} 12. Nf3 {[%clk 0:02:38]}  Nf6 {[%clk 0:02:32]} 13. Qd2 {[%clk 0:02:32]}  Re8 {[%clk 0:02:25]} 14. Rad1 {[%clk 0:02:31]}  Bg4 {[%clk 0:02:20]} 15. h3 {[%clk 0:02:21]}  Bxf3 {[%clk 0:02:20]} 16. Bxf3 {[%clk 0:02:22]}  e6 {[%clk 0:02:17]} 17. Rfe1 {[%clk 0:02:12]}  Nbd7 {[%clk 0:02:09]} 18. Bf4 {[%clk 0:02:09]}  Qa5 {[%clk 0:02:07]} 19. d5 {[%clk 0:01:48]}  cxd5 {[%clk 0:01:57]} 20. cxd5 {[%clk 0:01:45]}  e5 {[%clk 0:01:47]} 21. Bg5 {[%clk 0:01:34]}  Rac8 {[%clk 0:01:47]} 22. Rc1 {[%clk 0:01:24]}  h6 {[%clk 0:01:33]} 23. Be3 {[%clk 0:01:17]}  b6 {[%clk 0:01:24]} 24. d6 {[%clk 0:01:15]}  e4 {[%clk 0:01:21]} 25. Nxe4 {[%clk 0:00:50]}  Rxc1 {[%clk 0:00:56]} 26. Qxa5 {[%clk 0:00:49]}  Nxe4 {[%clk 0:00:39]} 27. Bxc1 {[%clk 0:00:36]}  bxa5 {[%clk 0:00:40]} 28. Rxe4 {[%clk 0:00:35]}  Rd8 {[%clk 0:00:38]} 29. Rc4 {[%clk 0:00:20]}  Ne5 {[%clk 0:00:37]} 30. Rc7 {[%clk 0:00:14]}  Rxd6 {[%clk 0:00:35]} 31. Be3 {[%clk 0:00:10]}  Nxf3+ {[%clk 0:00:35]} 32. gxf3 {[%clk 0:00:11]}  a6 {[%clk 0:00:36]} 33. Rc5 {[%clk 0:00:09]}  h5 {[%clk 0:00:17]} 34. Rxa5 {[%clk 0:00:09]}  Bb2 {[%clk 0:00:16]} 35. Kg2 {[%clk 0:00:10]}  Kg7 {[%clk 0:00:16]} 36. Ra4 {[%clk 0:00:09]}  Kf6 {[%clk 0:00:15]} 37. Rc4 {[%clk 0:00:10]}  Ke6 {[%clk 0:00:15]} 38. Re4+ {[%clk 0:00:09]}  Kd5 {[%clk 0:00:14]} 39. a4 {[%clk 0:00:08]}  Rc6 {[%clk 0:00:14]} 40. Rb4 {[%clk 0:00:07]}  f5 {[%clk 0:00:13]} 41. Rb7 {[%clk 0:00:06]}  Be5 {[%clk 0:00:14]} 42. f4 {[%clk 0:00:06]}  Bd6 {[%clk 0:00:14]} 43. Kf3 {[%clk 0:00:07]}  Bc7 {[%clk 0:00:08]} 44. b4 {[%clk 0:00:07]}  Rc4 {[%clk 0:00:08]} 45. b5 {[%clk 0:00:07]}  a5 {[%clk 0:00:07]} 46. b6 {[%clk 0:00:06]}  Bd6 {[%clk 0:00:08]} 47. Ra7 {[%clk 0:00:05]}  Rxa4 {[%clk 0:00:08]} 48. b7 {[%clk 0:00:05]}  Ra2 {[%clk 0:00:07]} 49. Ra8 {[%clk 0:00:05]}  Rb2 {[%clk 0:00:08]} 50. Rxa5+ {[%clk 0:00:05]}  Ke6 {[%clk 0:00:07]} 51. Ra6 {[%clk 0:00:05]}  Kd7 {[%clk 0:00:07]} 52. Kg2 {[%clk 0:00:02]}  Rxb7 {[%clk 0:00:07]} 53. Ra2 {[%clk 0:00:02]}  Rb5 {[%clk 0:00:07]} 54. Kf3 {[%clk 0:00:02]}  Ke6 {[%clk 0:00:07]} 55. Rd2 {[%clk 0:00:03]}  Rb3 {[%clk 0:00:08]} 56. Ra2 {[%clk 0:00:03]}  Rb1 {[%clk 0:00:07]} 57. Ra6 {[%clk 0:00:03]}  Kd5 {[%clk 0:00:07]} 58. Ra5+ {[%clk 0:00:03]}  Ke6 {[%clk 0:00:07]} 59. Ra6 {[%clk 0:00:04]}  Rb5 {[%clk 0:00:08]} 60. Ra4 {[%clk 0:00:04]}  Rd5 {[%clk 0:00:07]} 61. Ra6 {[%clk 0:00:04]}  Kf6 {[%clk 0:00:05]} 62. Rc6 {[%clk 0:00:05]}  Kf7 {[%clk 0:00:05]} 63. Ra6 {[%clk 0:00:05]}  Rd1 {[%clk 0:00:05]} 64. Ra7+ {[%clk 0:00:05]}  Ke6 {[%clk 0:00:05]} 65. Ra6 {[%clk 0:00:06]}  Rd5 {[%clk 0:00:04]} 66. Rc6 {[%clk 0:00:06]}  Kd7 {[%clk 0:00:04]} 67. Ra6 {[%clk 0:00:06]}  Rb5 {[%clk 0:00:04]} 68. Ra7+ {[%clk 0:00:06]}  Ke8 {[%clk 0:00:04]} 69. Ra6 {[%clk 0:00:07]}  Ke7 {[%clk 0:00:04]} 70. Ra7+ {[%clk 0:00:08]}  Ke6 {[%clk 0:00:04]} 71. Ra6 {[%clk 0:00:08]}  Kd7 {[%clk 0:00:02]} 72. Ra7+ {[%clk 0:00:09]}  Kc6 {[%clk 0:00:02]} 73. Ra6+ {[%clk 0:00:09]}  Kd5 {[%clk 0:00:03]} 74. Ra7 {[%clk 0:00:09]}  Rb3 {[%clk 0:00:03]} 75. Rg7 {[%clk 0:00:08]}  Rb1 {[%clk 0:00:02]} 76. Rxg6 {[%clk 0:00:08]}  Rh1 {[%clk 0:00:02]} 77. Kg2 {[%clk 0:00:09]}  Rb1 {[%clk 0:00:02]} 78. Rg5 {[%clk 0:00:09]}  Ke4 {[%clk 0:00:02]} 79. Rxh5 {[%clk 0:00:08]}  Rb7 {[%clk 0:00:02]} 80. Rh6 {[%clk 0:00:08]}  Rg7+ {[%clk 0:00:03]} 81. Kf1 {[%clk 0:00:09]}  Bb4 {[%clk 0:00:02]} 82. Re6+ {[%clk 0:00:09]}  Kf3 {[%clk 0:00:02]} 83. Re5 {[%clk 0:00:05]}  Rd7 {[%clk 0:00:01]} 84. Kg1 {[%clk 0:00:03]}  Rd1+ {[%clk 0:00:02]} 85. Kh2 {[%clk 0:00:04]}  Be1 {[%clk 0:00:02]} 86. Rxf5 {[%clk 0:00:03]}  Bxf2 {[%clk 0:00:02]} 87. Bxf2 {[%clk 0:00:04]}  Rd2 {[%clk 0:00:02]} 88. h4 {[%clk 0:00:04]}  Rxf2+ {[%clk 0:00:03]} 89. Kh3 {[%clk 0:00:04]}  Rf1 {[%clk 0:00:03]} 90. Kh2 {[%clk 0:00:03]}  Rf2+ {[%clk 0:00:04]} 91. Kh3 {[%clk 0:00:03]}  Rf1 {[%clk 0:00:04]} 92. Kh2 {[%clk 0:00:04]}  Rf2+ {[%clk 0:00:05]} 1/2-1/2


[Site "https://www.chess.com"]

[Event "Titled Tuesday Blitz June 8 2021"]
[White "Gritsenko, Nikolai"]
[Black "Martin Duque, Jesus"]
[WhiteFideId "14112493"]
[BlackFideId "2208954"]
[WhiteElo "2389"]
[BlackElo "2246"]
[Result "1/2-1/2"]
[Round "01"]
[TimeControl "180+1"]
[Date "2021.06.08"]
[WhiteClock "0:00:10"]
[BlackClock "0:00:25"]

1. e4 {[%clk 0:02:59]}  c5 {[%clk 0:02:58]} 2. Nf3 {[%clk 0:02:59]}  e6 {[%clk 0:02:54]} 3. d4 {[%clk 0:02:58]}  cxd4 {[%clk 0:02:54]} 4. Nxd4 {[%clk 0:02:58]}  Nc6 {[%clk 0:02:54]} 5. Nc3 {[%clk 0:02:57]}  Qc7 {[%clk 0:02:55]} 6. Ndb5 {[%clk 0:02:54]}  Qb8 {[%clk 0:02:54]} 7. Be3 {[%clk 0:02:52]}  Nf6 {[%clk 0:02:54]} 8. a3 {[%clk 0:02:45]}  Be7 {[%clk 0:02:53]} 9. Be2 {[%clk 0:02:42]}  O-O {[%clk 0:02:53]} 10. O-O {[%clk 0:02:42]}  a6 {[%clk 0:02:44]} 11. Nd4 {[%clk 0:02:41]}  Qc7 {[%clk 0:02:40]} 12. f4 {[%clk 0:02:39]}  d6 {[%clk 0:02:40]} 13. Bf3 {[%clk 0:02:34]}  Bd7 {[%clk 0:02:40]} 14. Qe2 {[%clk 0:02:28]}  Nxd4 {[%clk 0:02:40]} 15. Bxd4 {[%clk 0:02:28]}  e5 {[%clk 0:02:38]} 16. fxe5 {[%clk 0:02:23]}  dxe5 {[%clk 0:02:38]} 17. Be3 {[%clk 0:02:23]}  Bc5 {[%clk 0:02:38]} 18. Bxc5 {[%clk 0:02:09]}  Qxc5+ {[%clk 0:02:37]} 19. Qf2 {[%clk 0:02:09]}  Qxf2+ {[%clk 0:02:36]} 20. Rxf2 {[%clk 0:02:09]}  Bc6 {[%clk 0:02:37]} 21. Rd2 {[%clk 0:02:08]}  Rfd8 {[%clk 0:02:37]} 22. Rad1 {[%clk 0:02:07]}  Rxd2 {[%clk 0:02:34]} 23. Rxd2 {[%clk 0:02:07]}  Kf8 {[%clk 0:02:35]} 24. Kf2 {[%clk 0:02:06]}  Ke7 {[%clk 0:02:35]} 25. Ke3 {[%clk 0:02:01]}  b5 {[%clk 0:02:35]} 26. Nd5+ {[%clk 0:01:40]}  Bxd5 {[%clk 0:02:35]} 27. exd5 {[%clk 0:01:40]}  Kd6 {[%clk 0:02:34]} 28. g4 {[%clk 0:01:37]}  h6 {[%clk 0:02:11]} 29. h4 {[%clk 0:01:36]}  Rc8 {[%clk 0:01:53]} 30. g5 {[%clk 0:01:34]}  hxg5 {[%clk 0:01:53]} 31. hxg5 {[%clk 0:01:34]}  Nd7 {[%clk 0:01:52]} 32. Bg4 {[%clk 0:01:24]}  Rc4 {[%clk 0:01:43]} 33. Bxd7 {[%clk 0:01:22]}  Kxd7 {[%clk 0:01:43]} 34. Rf2 {[%clk 0:01:04]}  Ke7 {[%clk 0:01:41]} 35. c3 {[%clk 0:00:41]}  Rg4 {[%clk 0:01:34]} 36. Rf5 {[%clk 0:00:40]}  f6 {[%clk 0:01:33]} 37. gxf6+ {[%clk 0:00:39]}  gxf6 {[%clk 0:01:34]} 38. d6+ {[%clk 0:00:28]}  Ke6 {[%clk 0:01:32]} 39. d7 {[%clk 0:00:28]}  Rg8 {[%clk 0:01:31]} 40. Rh5 {[%clk 0:00:27]}  Rd8 {[%clk 0:01:29]} 41. Rh7 {[%clk 0:00:25]}  Rxd7 {[%clk 0:01:29]} 42. Rh8 {[%clk 0:00:25]}  Kf5 {[%clk 0:01:19]} 43. Rh5+ {[%clk 0:00:20]}  Kg4 {[%clk 0:01:19]} 44. Rh6 {[%clk 0:00:20]}  Rd6 {[%clk 0:01:19]} 45. Rg6+ {[%clk 0:00:19]}  Kf5 {[%clk 0:01:18]} 46. Rg7 {[%clk 0:00:18]}  e4 {[%clk 0:01:14]} 47. Rh7 {[%clk 0:00:16]}  Rd3+ {[%clk 0:01:14]} 48. Ke2 {[%clk 0:00:16]}  Kf4 {[%clk 0:01:14]} 49. Rh4+ {[%clk 0:00:15]}  Ke5 {[%clk 0:01:14]} 50. Rh8 {[%clk 0:00:14]}  f5 {[%clk 0:01:13]} 51. Rh5 {[%clk 0:00:14]}  Rg3 {[%clk 0:01:12]} 52. Kf2 {[%clk 0:00:13]}  Kf4 {[%clk 0:01:11]} 53. Rxf5+ {[%clk 0:00:13]}  Kxf5 {[%clk 0:01:11]} 54. Kxg3 {[%clk 0:00:13]}  a5 {[%clk 0:01:07]} 55. b3 {[%clk 0:00:11]}  Ke5 {[%clk 0:01:00]} 56. Kf2 {[%clk 0:00:10]}  a4 {[%clk 0:00:56]} 57. bxa4 {[%clk 0:00:10]}  bxa4 {[%clk 0:00:56]} 58. Ke3 {[%clk 0:00:09]}  Kd5 {[%clk 0:00:57]} 59. c4+ {[%clk 0:00:09]}  Kxc4 {[%clk 0:00:57]} 60. Kxe4 {[%clk 0:00:09]}  Kb3 {[%clk 0:00:57]} 61. Kd3 {[%clk 0:00:10]}  Kxa3 {[%clk 0:00:58]} 62. Kc2 {[%clk 0:00:10]}  Ka2 {[%clk 0:00:58]} 63. Kc1 {[%clk 0:00:10]}  a3 {[%clk 0:00:56]} 64. Kc2 {[%clk 0:00:10]}  Ka1 {[%clk 0:00:55]} 65. Kc1 {[%clk 0:00:10]}  Ka2 {[%clk 0:00:55]} 66. Kc2 {[%clk 0:00:10]}  Ka1 {[%clk 0:00:24]} 67. Kc1 {[%clk 0:00:10]}  a2 {[%clk 0:00:25]} 68. Kc2 {[%clk 0:00:10]} 1/2-1/2


[Site "https://www.chess.com"]

[Event "Titled Tuesday Blitz June 8 2021"]
[White "Guliev, Logman"]
[Black "Bekturov, Tamerlan"]
[WhiteFideId "13400061"]
[BlackFideId "13710184"]
[WhiteElo "2128"]
[BlackElo "2186"]
[Result "1-0"]
[Round "01"]
[TimeControl "180+1"]
[Date "2021.06.08"]
[WhiteClock "0:00:28"]
[BlackClock "0:00:15"]

1. e4 {[%clk 0:03:00]}  c6 {[%clk 0:02:58]} 2. d4 {[%clk 0:02:59]}  d5 {[%clk 0:02:59]} 3. exd5 {[%clk 0:03:00]}  cxd5 {[%clk 0:02:59]} 4. c4 {[%clk 0:03:00]}  Nf6 {[%clk 0:03:00]} 5. Nc3 {[%clk 0:03:01]}  g6 {[%clk 0:03:00]} 6. Qb3 {[%clk 0:02:59]}  Bg7 {[%clk 0:03:00]} 7. cxd5 {[%clk 0:03:00]}  O-O {[%clk 0:03:01]} 8. Be2 {[%clk 0:03:00]}  Na6 {[%clk 0:03:01]} 9. Bf3 {[%clk 0:03:01]}  Nc7 {[%clk 0:03:01]} 10. Nge2 {[%clk 0:02:58]}  Rb8 {[%clk 0:03:01]} 11. a4 {[%clk 0:02:49]}  Bg4 {[%clk 0:02:57]} 12. Bxg4 {[%clk 0:02:46]}  Nxg4 {[%clk 0:02:57]} 13. O-O {[%clk 0:02:46]}  Nf6 {[%clk 0:02:57]} 14. Nf4 {[%clk 0:02:45]}  g5 {[%clk 0:02:56]} 15. Nfe2 {[%clk 0:02:39]}  h6 {[%clk 0:02:54]} 16. Ng3 {[%clk 0:02:39]}  Ncxd5 {[%clk 0:02:47]} 17. Nf5 {[%clk 0:02:37]}  e6 {[%clk 0:02:43]} 18. Nxg7 {[%clk 0:02:37]}  Kxg7 {[%clk 0:02:43]} 19. a5 {[%clk 0:02:27]}  Rc8 {[%clk 0:02:24]} 20. Re1 {[%clk 0:02:08]}  Nxc3 {[%clk 0:02:04]} 21. bxc3 {[%clk 0:02:07]}  Qd5 {[%clk 0:02:05]} 22. Qb2 {[%clk 0:01:39]}  Ne4 {[%clk 0:02:02]} 23. Bd2 {[%clk 0:01:37]}  Rc4 {[%clk 0:01:58]} 24. f3 {[%clk 0:01:27]}  Nxd2 {[%clk 0:01:51]} 25. Qxd2 {[%clk 0:01:27]}  Rfc8 {[%clk 0:01:52]} 26. Re3 {[%clk 0:01:07]}  Qf5 {[%clk 0:01:35]} 27. h4 {[%clk 0:01:02]}  Qf4 {[%clk 0:01:33]} 28. hxg5 {[%clk 0:00:55]}  Rxc3 {[%clk 0:01:33]} 29. gxh6+ {[%clk 0:00:54]}  Kh8 {[%clk 0:00:44]} 30. Rae1 {[%clk 0:00:53]}  Rc2 {[%clk 0:00:32]} 31. Qd3 {[%clk 0:00:48]}  Qxh6 {[%clk 0:00:31]} 32. d5 {[%clk 0:00:45]}  exd5 {[%clk 0:00:24]} 33. Re8+ {[%clk 0:00:42]}  Kg7 {[%clk 0:00:24]} 34. Qd4+ {[%clk 0:00:37]}  Kh7 {[%clk 0:00:19]} 35. Qh8+ {[%clk 0:00:34]}  Kg6 {[%clk 0:00:19]} 36. R1e6+ {[%clk 0:00:30]}  fxe6 {[%clk 0:00:15]} 37. Rxe6+ {[%clk 0:00:30]}  Kf5 {[%clk 0:00:15]} 38. Qxh6 {[%clk 0:00:29]}  Rc1+ {[%clk 0:00:15]} 39. Kh2 {[%clk 0:00:29]}  Rh8 {[%clk 0:00:15]} 40. Rf6+ {[%clk 0:00:28]}  Ke5 {[%clk 0:00:15]} 41. Qxh8 {[%clk 0:00:28]} 1-0


[Site "https://www.chess.com"]